[Event "26th Zadar Open 2019"]
[Site "Zadar"]
[Date "2019.12.20"]
[Round "7.6"]
[White "Yeoh, Li Tian"]
[Black "Stany, G.A."]
[Result "1/2-1/2"]
[ECO "C00"]
[WhiteElo "2530"]
[BlackElo "2526"]
[Annotator "ChessBase"]
[PlyCount "162"]
[EventDate "2019.12.15"]
[EventType "swiss"]
[EventCountry "CRO"]
[SourceTitle "playchess.com"]
[Source "ChessBase"]
[SourceQuality "1"]
[TimeControl "40/5400+30:1800+30"]

1. Nf3 {[%emt 0:00:30]} Nf6 {[%emt 0:03:30]} 2. g3 {[%emt 0:00:00]} d5 {[%emt 0:00:00]} 3. Bg2 {[%emt 0:00:00]} e6 {[%emt 0:00:00]} 4. O-O {[%emt 0:02:30]} Be7 {[%emt 0:00:00]} 5. d3 {[%emt 0:00:30]} O-O {[%emt 0:00:00]} 6. Nbd2 {[%emt 0:00:00]} c5 {[%emt 0:00:30]} 7. e4 {[%emt 0:00:00]} Nc6 {[%emt 0:00:00]} 8. Re1 {[%emt 0:00:00]} b5 {[%emt 0:00:00]} 9. e5 {[%emt 0:00:00]} Nd7 {[%emt 0:00:30]} 10. Nf1 {[%emt 0:00:30]} Bb7 {[%emt 0:00:00]} 11. h4 {[%emt 0:00:00]} Qc7 {[%emt 0:00:00]} 12. Bf4 {[%emt 0:00:00]} Rfc8 {[%emt 0:00:30]} 13. h5 {[%emt 0:00:30]} h6 {[%emt 0:00:00]} 14. Ne3 {[%emt 0:00:30]} Qd8 {[%emt 0:00:00]} 15. c4 {[%emt 0:01:30]} bxc4 {[%emt 0:12:30]} 16. dxc4 {[%emt 0:00:00]} Nb6 {[%emt 0:04:30]} 17. cxd5 {[%emt 0:11:00]} Nxd5 {[%emt 0:00:30]} 18. Nxd5 {[%emt 0:00:30]} Qxd5 {[%emt 0:00:00]} 19. Qxd5 {[%emt 0:00:30]} exd5 {[%emt 0:00:00]} 20. Bh3 {[%emt 0:00:30]} Rd8 {[%emt 0:02:30]} 21. e6 {[%emt 0:03:30]} Bc8 {[%emt 0:07:30]} 22. Rac1 {[%emt 0:40:30]} Bxe6 {[%emt 0:07:30]} 23. Bxe6 {[%emt 0:00:30]} fxe6 {[%emt 0:00:00]} 24. Rxe6 {[%emt 0:00:00]} Rac8 {[%emt 0:00:00]} 25. b4 {[%emt 0:00:00]} Bf8 {[%emt 0:12:30]} 26. bxc5 {[%emt 0:00:30]} d4 {[%emt 0:00:30]} 27. Bd6 {[%emt 0:06:30]} Kf7 {[%emt 0:16:30]} 28. Rg6 {[%emt 0:04:30]} Be7 {[%emt 0:12:30]} 29. Rb1 {[%emt 0:07:30]} Bf6 {[%emt 0:05:41]} 30. Rb7+ {[%emt 0:00:00]} Kg8 {[%emt 0:06:23]} 31. g4 {[%emt 0:06:30]} Na5 {[%emt 0:00:11]} 32. Rxa7 {[%emt 0:00:23]} Nc6 {[%emt 0:00:45]} 33. Rb7 {[%emt 0:01:31]} Na5 {[%emt 0:00:04]} 34. Ra7 {[%emt 0:14:51]} Nc6 {[%emt 0:00:05]} 35. Rb7 {[%emt 0:00:45]} Na5 {[%emt 0:00:09]} 36. Be7 {[%emt 0:00:41]} Nxb7 {[%emt 0:02:51]} 37. Bxf6 {[%emt 0:00:04]} Rd7 {[%emt 0:00:24]} 38. Ne5 {[%emt 0:01:12]} Rdc7 {[%emt 0:01:25]} 39. c6 {[%emt 0:00:07]} Nc5 {[%emt 0:01:37]} 40. Bh4 {[%emt 0:00:21]} d3 {[%emt 0:00:00]} 41. Rd6 {[%emt 0:06:35]} Ra7 {[%emt 0:04:55]} 42. Kg2 {[%emt 0:07:13]} Rxa2 {[%emt 0:00:30]} 43. c7 {[%emt 0:00:22]} Nb7 {[%emt 0:00:30]} 44. Rd7 {[%emt 0:02:41]} d2 {[%emt 0:01:30]} 45. Nf3 {[%emt 0:02:08]} Rxc7 {[%emt 0:01:30]} 46. Rxd2 {[%emt 0:00:05]} Rxd2 {[%emt 0:00:00]} 47. Nxd2 {[%emt 0:00:07]} Nc5 {[%emt 0:00:00]} 48. Bg3 {[%emt 0:00:49]} Rb7 {[%emt 0:00:30]} 49. Bd6 {[%emt 0:00:37]} Nd3 {[%emt 0:00:30]} 50. Ne4 {[%emt 0:00:33]} Rb2 {[%emt 0:01:30]} 51. Kf3 {[%emt 0:00:41]} Kf7 {[%emt 0:03:30]} 52. Ke3 {[%emt 0:01:00]} Nb4 {[%emt 0:04:30]} 53. Bg3 {[%emt 0:04:39]} Rb3+ {[%emt 0:00:30]} 54. Kd4 {[%emt 0:00:43]} Nc6+ {[%emt 0:00:30]} 55. Kd5 {[%emt 0:01:33]} Ne7+ {[%emt 0:00:30]} 56. Ke5 {[%emt 0:00:12]} Rb5+ {[%emt 0:00:30]} 57. Kd4 {[%emt 0:00:06]} Nc6+ {[%emt 0:00:30]} 58. Kc4 {[%emt 0:01:25]} Rb4+ {[%emt 0:00:00]} 59. Kd3 {[%emt 0:00:29]} Ke6 {[%emt 0:00:00]} 60. f4 {[%emt 0:00:59]} Rb3+ {[%emt 0:04:30]} 61. Kc4 {[%emt 0:00:07]} Rb4+ {[%emt 0:07:49]} 62. Kd3 {[%emt 0:00:06]} Rd4+ {[%emt 0:00:02]} 63. Ke3 {[%emt 0:00:12]} Kd5 {[%emt 0:00:10]} 64. Nc3+ {[%emt 0:01:45]} Kc4 {[%emt 0:00:12]} 65. Ne2 {[%emt 0:00:05]} Rd8 {[%emt 0:00:39]} 66. f5 {[%emt 0:01:25]} Re8+ {[%emt 0:01:07]} 67. Kf3 {[%emt 0:00:24]} Re7 {[%emt 0:02:42]} 68. Bd6 {[%emt 0:02:10]} Rd7 {[%emt 0:00:31]} 69. Bf8 {[%emt 0:00:12]} Ne5+ {[%emt 0:02:49]} 70. Kf4 {[%emt 0:00:15]} Nd3+ {[%emt 0:00:08]} 71. Ke4 {[%emt 0:00:14]} Rf7 {[%emt 0:01:28]} 72. Bd6 {[%emt 0:00:18]} Nf2+ {[%emt 0:00:53]} 73. Kf3 {[%emt 0:00:12]} Nh3 {[%emt 0:00:11]} 74. Bf4 {[%emt 0:05:12]} Kd3 {[%emt 0:04:02]} 75. Nc1+ {[%emt 0:00:04]} Kc2 {[%emt 0:01:21]} 76. Ne2 {[%emt 0:00:03]} Kd3 {[%emt 0:00:52]} 77. Nc1+ {[%emt 0:00:04]} Kc4 {[%emt 0:00:15]} 78. Ne2 {[%emt 0:00:03]} Rd7 {[%emt 0:00:43]} 79. Be3 {[%emt 0:00:35]} Ng5+ {[%emt 0:00:24]} 80. Bxg5 {[%emt 0:01:06]} hxg5 {[%emt 0:00:04]} 81. Ng1 {[%emt 0:00:22]} Rd3+ {[%emt 0:01:15]} 1/2-1/2

[Event "26th Zadar Open 2019"]
[Site "Zadar"]
[Date "2019.12.20"]
[Round "7.7"]
[White "Livaic, Leon"]
[Black "Bukal, Vladimir Jr."]
[Result "1/2-1/2"]
[ECO "A43"]
[WhiteElo "2505"]
[BlackElo "2393"]
[Annotator "ChessBase"]
[PlyCount "113"]
[EventDate "2019.12.15"]
[EventType "swiss"]
[EventCountry "CRO"]
[SourceTitle "playchess.com"]
[Source "ChessBase"]
[SourceQuality "1"]
[TimeControl "40/5400+30:1800+30"]

1. d4 {[%emt 0:00:30]} e6 {[%emt 0:00:30]} 2. g3 {[%emt 0:02:30]} c5 {[%emt 0:01:30]} 3. Nf3 {[%emt 0:00:30]} cxd4 {[%emt 0:02:30]} 4. Nxd4 {[%emt 0:00:00]} Qa5+ {[%emt 0:00:30]} 5. Nc3 {[%emt 0:07:00]} Nf6 {[%emt 0:09:30]} 6. Bg2 {[%emt 0:01:30]} d5 {[%emt 0:01:30]} 7. O-O {[%emt 0:02:30]} Be7 {[%emt 0:01:30]} 8. e4 {[%emt 0:01:30]} dxe4 {[%emt 0:01:30]} 9. Nxe4 {[%emt 0:03:30]} Nxe4 {[%emt 0:01:30]} 10. Bxe4 {[%emt 0:00:30]} O-O {[%emt 0:00:30]} 11. c3 {[%emt 0:02:30]} Nd7 {[%emt 0:02:30]} 12. Re1 {[%emt 0:06:30]} Rd8 {[%emt 0:11:30]} 13. Qe2 {[%emt 0:11:30]} Bf6 {[%emt 0:13:30]} 14. Be3 {[%emt 0:04:30]} a6 {[%emt 0:06:30]} 15. a4 {[%emt 0:02:30]} Qc7 {[%emt 0:01:30]} 16. a5 {[%emt 0:00:30]} Nc5 {[%emt 0:06:30]} 17. Bc2 {[%emt 0:00:30]} e5 {[%emt 0:02:30]} 18. Nb3 {[%emt 0:02:30]} Nxb3 {[%emt 0:09:30]} 19. Bxb3 {[%emt 0:00:30]} Qe7 {[%emt 0:01:30]} 20. Bb6 {[%emt 0:00:30]} Re8 {[%emt 0:00:30]} 21. Qe4 {[%emt 0:01:30]} g6 {[%emt 0:01:30]} 22. Bd5 {[%emt 0:01:30]} Rb8 {[%emt 0:04:31]} 23. Rad1 {[%emt 0:01:30]} Bf5 {[%emt 0:01:31]} 24. Qg2 {[%emt 0:00:30]} h5 {[%emt 0:00:57]} 25. h3 {[%emt 0:05:30]} Bg7 {[%emt 0:08:43]} 26. Re2 {[%emt 0:05:30]} Kh7 {[%emt 0:00:30]} 27. Kh2 {[%emt 0:01:30]} Bh6 {[%emt 0:03:42]} 28. b4 {[%emt 0:03:30]} h4 {[%emt 0:01:24]} 29. g4 {[%emt 0:00:30]} Bf4+ {[%emt 0:00:09]} 30. Kh1 {[%emt 0:00:30]} Be6 {[%emt 0:02:23]} 31. Ree1 {[%emt 0:00:30]} Kg7 {[%emt 0:01:30]} 32. Bc5 {[%emt 0:05:30]} Qc7 {[%emt 0:00:35]} 33. c4 {[%emt 0:03:30]} Bxd5 {[%emt 0:01:06]} 34. Rxd5 {[%emt 0:00:30]} Qc6 {[%emt 0:00:33]} 35. Qe4 {[%emt 0:01:30]} Rbd8 {[%emt 0:00:42]} 36. Red1 {[%emt 0:00:30]} Rxd5 {[%emt 0:00:09]} 37. cxd5 {[%emt 0:01:30]} Qa4 {[%emt 0:00:07]} 38. Rd3 {[%emt 0:00:30]} Rd8 {[%emt 0:00:58]} 39. d6 {[%emt 0:01:30]} Rd7 {[%emt 0:00:33]} 40. Kg2 {[%emt 0:00:30]} Qc6 {[%emt 0:00:43]} 41. f3 {[%emt 0:01:30]} Qxe4 {[%emt 0:05:14]} 42. fxe4 {[%emt 0:00:30]} Kf6 {[%emt 0:01:30]} 43. b5 {[%emt 0:04:30]} axb5 {[%emt 0:00:00]} 44. Rb3 {[%emt 0:06:30]} Ke6 {[%emt 0:09:22]} 45. Rxb5 {[%emt 0:00:00]} Bg5 {[%emt 0:00:04]} 46. Rb2 {[%emt 0:07:00]} Bh6 {[%emt 0:04:45]} 47. Kf3 {[%emt 0:00:30]} Bg5 {[%emt 0:01:12]} 48. Ke2 {[%emt 0:01:30]} Bd8 {[%emt 0:02:25]} 49. Bb4 {[%emt 0:00:30]} f5 {[%emt 0:01:21]} 50. gxf5+ {[%emt 0:01:30]} gxf5 {[%emt 0:00:03]} 51. exf5+ {[%emt 0:03:30]} Kxf5 {[%emt 0:00:02]} 52. Kd3 {[%emt 0:00:00]} Bc7 {[%emt 0:04:18]} 53. Kc4 {[%emt 0:01:00]} Bxd6 {[%emt 0:00:19]} 54. Bxd6 {[%emt 0:01:30]} Rxd6 {[%emt 0:00:30]} 55. Rxb7 {[%emt 0:01:30]} Kf4 {[%emt 0:00:30]} 56. Rb6 {[%emt 0:01:30]} Rd1 {[%emt 0:01:45]} 57. a6 {[%emt 0:01:30]} 1/2-1/2

[Event "26th Zadar Open 2019"]
[Site "Zadar"]
[Date "2019.12.20"]
[Round "7.8"]
[White "Doric, Darko"]
[Black "Ghersinich, Enrico"]
[Result "1-0"]
[ECO "D20"]
[WhiteElo "2492"]
[BlackElo "2157"]
[Annotator "ChessBase"]
[PlyCount "97"]
[EventDate "2019.12.15"]
[EventType "swiss"]
[EventCountry "CRO"]
[SourceTitle "playchess.com"]
[Source "ChessBase"]
[SourceQuality "1"]
[TimeControl "40/5400+30:1800+30"]

1. d4 {[%emt 0:00:30]} d5 {[%emt 0:00:30]} 2. c4 {[%emt 0:00:00]} dxc4 {[%emt 0:00:30]} 3. e4 {[%emt 0:00:00]} Nf6 {[%emt 0:00:00]} 4. e5 {[%emt 0:00:00]} Nd5 {[%emt 0:00:00]} 5. Bxc4 {[%emt 0:00:00]} Bf5 {[%emt 0:00:30]} 6. Nf3 {[%emt 0:28:30]} e6 {[%emt 0:00:30]} 7. O-O {[%emt 0:01:30]} Be7 {[%emt 0:00:30]} 8. Nc3 {[%emt 0:01:30]} c6 {[%emt 0:00:30]} 9. Qe2 {[%emt 0:00:30]} O-O {[%emt 0:03:30]} 10. Rd1 {[%emt 0:01:30]} Nd7 {[%emt 0:13:30]} 11. h3 {[%emt 0:00:30]} N7b6 {[%emt 0:08:30]} 12. Bb3 {[%emt 0:00:30]} Qc7 {[%emt 0:04:30]} 13. Ne4 {[%emt 0:01:30]} a5 {[%emt 0:01:30]} 14. a3 {[%emt 0:01:30]} a4 {[%emt 0:06:30]} 15. Ba2 {[%emt 0:00:30]} Ra5 {[%emt 0:01:30]} 16. Bg5 {[%emt 0:03:30]} Bxg5 {[%emt 0:02:30]} 17. Nfxg5 {[%emt 0:00:00]} Qe7 {[%emt 0:06:30]} 18. Qd2 {[%emt 0:03:00]} Rb5 {[%emt 0:01:30]} 19. Nd6 {[%emt 0:01:30]} Rxb2 {[%emt 0:00:30]} 20. Nxf5 {[%emt 0:00:30]} exf5 {[%emt 0:00:30]} 21. Qxb2 {[%emt 0:00:30]} Qxg5 {[%emt 0:00:00]} 22. Rd3 {[%emt 0:03:30]} f4 {[%emt 0:14:00]} 23. Bxd5 {[%emt 0:01:30]} Nxd5 {[%emt 0:00:30]} 24. Qxb7 {[%emt 0:00:30]} Qf5 {[%emt 0:00:00]} 25. Rad1 {[%emt 0:00:30]} Rc8 {[%emt 0:00:00]} 26. Qa6 {[%emt 0:00:30]} g5 {[%emt 0:00:30]} 27. Qxa4 {[%emt 0:01:30]} h5 {[%emt 0:00:30]} 28. Qb3 {[%emt 0:02:30]} Kh8 {[%emt 0:05:30]} 29. a4 {[%emt 0:01:30]} Qe4 {[%emt 0:02:30]} 30. a5 {[%emt 0:01:30]} g4 {[%emt 0:04:30]} 31. hxg4 {[%emt 0:01:30]} hxg4 {[%emt 0:00:30]} 32. Rh3+ {[%emt 0:00:30]} Kg7 {[%emt 0:01:30]} 33. Qd3 {[%emt 0:00:30]} Qxd3 {[%emt 0:01:30]} 34. Rhxd3 {[%emt 0:00:00]} Ra8 {[%emt 0:00:30]} 35. Ra1 {[%emt 0:00:00]} Ra6 {[%emt 0:00:00]} 36. Kf1 {[%emt 0:00:30]} f6 {[%emt 0:02:30]} 37. exf6+ {[%emt 0:00:30]} Kxf6 {[%emt 0:00:06]} 38. Rb3 {[%emt 0:00:00]} Kf5 {[%emt 0:00:24]} 39. f3 {[%emt 0:01:00]} Ne3+ {[%emt 0:04:25]} 40. Rxe3 {[%emt 0:00:30]} fxe3 {[%emt 0:00:09]} 41. Ke2 {[%emt 0:29:30]} Kf4 {[%emt 0:31:03]} 42. Ra4 {[%emt 0:00:30]} g3 {[%emt 0:05:47]} 43. Kd3 {[%emt 0:01:30]} Ra8 {[%emt 0:00:31]} 44. a6 {[%emt 0:00:30]} Re8 {[%emt 0:00:20]} 45. Ra2 {[%emt 0:00:00]} c5 {[%emt 0:00:49]} 46. dxc5 {[%emt 0:00:00]} Rd8+ {[%emt 0:00:52]} 47. Ke2 {[%emt 0:00:30]} Ke5 {[%emt 0:01:25]} 48. a7 {[%emt 0:00:00]} Ra8 {[%emt 0:00:28]} 49. Kxe3 {[%emt 0:00:00]} 1-0

[Event "26th Zadar Open 2019"]
[Site "Zadar"]
[Date "2019.12.20"]
[Round "7.9"]
[White "Plenkovic, Zdenko"]
[Black "Galperin, Platon"]
[Result "*"]
[ECO "B94"]
[WhiteElo "2355"]
[BlackElo "2462"]
[Annotator "ChessBase"]
[PlyCount "82"]
[EventDate "2019.12.15"]
[EventType "swiss"]
[EventCountry "CRO"]
[SourceTitle "playchess.com"]
[Source "ChessBase"]
[SourceQuality "1"]
[TimeControl "40/5400+30:1800+30"]

1. e4 {[%emt 0:00:30]} c5 {[%emt 0:07:30]} 2. Nf3 {[%emt 0:00:00]} d6 {[%emt 0:00:00]} 3. d4 {[%emt 0:01:00]} Nf6 {[%emt 0:00:00]} 4. Nc3 {[%emt 0:00:30]} cxd4 {[%emt 0:00:00]} 5. Nxd4 {[%emt 0:00:00]} a6 {[%emt 0:00:00]} 6. Bg5 {[%emt 0:05:00]} Nbd7 {[%emt 0:00:30]} 7. Bc4 {[%emt 0:11:30]} e6 {[%emt 0:02:30]} 8. Bxe6 {[%emt 0:10:30]} fxe6 {[%emt 0:00:30]} 9. Nxe6 {[%emt 0:00:30]} Qa5 {[%emt 0:04:30]} 10. O-O {[%emt 0:03:30]} Kf7 {[%emt 0:15:30]} 11. Nxf8 {[%emt 0:07:30]} Qxg5 {[%emt 0:01:30]} 12. Nxd7 {[%emt 0:00:30]} Bxd7 {[%emt 0:00:30]} 13. Qxd6 {[%emt 0:00:30]} Rac8 {[%emt 0:08:30]} 14. Nd5 {[%emt 0:05:30]} Bh3 {[%emt 0:01:30]} 15. Nf4 {[%emt 0:01:30]} Bg4 {[%emt 0:01:30]} 16. e5 {[%emt 0:01:30]} Rhd8 {[%emt 0:00:30]} 17. Qb4 {[%emt 0:02:30]} Qxe5 {[%emt 0:02:30]} 18. Rae1 {[%emt 0:08:30]} Qb5 {[%emt 0:10:30]} 19. Re7+ {[%emt 0:03:30]} Kf8 {[%emt 0:01:30]} 20. Qxb5 {[%emt 0:03:30]} axb5 {[%emt 0:00:30]} 21. Rxb7 {[%emt 0:00:30]} g5 {[%emt 0:06:30]} 22. f3 {[%emt 0:02:30]} Bd7 {[%emt 0:04:30]} 23. Rb6 {[%emt 0:06:30]} Kg7 {[%emt 0:01:30]} 24. Ne2 {[%emt 0:01:30]} Rxc2 {[%emt 0:00:30]} 25. Nd4 {[%emt 0:00:00]} Rd2 {[%emt 0:00:30]} 26. Rd6 {[%emt 0:01:00]} Kf7 {[%emt 0:01:30]} 27. Re1 {[%emt 0:03:30]} b4 {[%emt 0:02:30]} 28. Re2 {[%emt 0:04:18]} Rd3 {[%emt 0:06:30]} 29. Kf2 {[%emt 0:01:34]} Ra8 {[%emt 0:00:30]} 30. Re5 {[%emt 0:03:43]} Rd2+ {[%emt 0:00:30]} 31. Ke1 {[%emt 0:00:12]} Rxb2 {[%emt 0:01:02]} 32. Nf5 {[%emt 0:02:55]} Bxf5 {[%emt 0:00:49]} 33. Rxf5 {[%emt 0:00:29]} Re8+ {[%emt 0:00:10]} 34. Kd1 {[%emt 0:03:40]} Re6 {[%emt 0:00:02]} 35. Rxe6 {[%emt 0:00:53]} Kxe6 {[%emt 0:00:27]} 36. Rxg5 {[%emt 0:00:05]} Rxa2 {[%emt 0:00:30]} 37. f4 {[%emt 0:01:32]} Nd5 {[%emt 0:00:00]} 38. Rg3 {[%emt 0:01:46]} Nc3+ {[%emt 0:00:00]} 39. Ke1 {[%emt 0:00:04]} b3 {[%emt 0:00:30]} 40. Rxc3 {[%emt 0:01:36]} Ra1+ {[%emt 0:00:30]} 41. Kf2 {[%emt 0:30:11]} b2 {[%emt 0:30:30]} *

[Event "26th Zadar Open 2019"]
[Site "Zadar"]
[Date "2019.12.20"]
[Round "7.10"]
[White "Rogic, Davor"]
[Black "Manush Shah"]
[Result "1-0"]
[ECO "B18"]
[WhiteElo "2485"]
[BlackElo "2341"]
[Annotator "RC"]
[PlyCount "97"]
[EventDate "2019.12.15"]
[EventType "swiss"]
[EventCountry "CRO"]
[SourceTitle "playchess.com"]
[Source "ChessBase"]
[SourceQuality "1"]
[TimeControl "40/5400+30:1800+30"]

1. e4 {[%emt 0:00:30]} c6 {[%emt 0:00:30]} 2. d4 {[%emt 0:00:30]} d5 {[%emt 0:00:30]} 3. Nd2 {[%emt 0:00:30]} dxe4 {[%emt 0:00:00]} 4. Nxe4 {[%emt 0:00:00]} Bf5 {[%emt 0:00:00]} 5. Ng3 {[%emt 0:00:00]} Bg6 {[%emt 0:00:30]} 6. Nf3 {[%emt 0:00:00]} Nf6 {[%emt 0:00:30]} 7. Bc4 {[%emt 0:01:00]} e6 {[%emt 0:00:00]} 8. O-O {[%emt 0:00:00]} Na6 {[%emt 0:04:00]} 9. c3 {[%emt 0:06:00]} Nc7 {[%emt 0:00:30]} 10. Qe2 {[%emt 0:01:30]} Bd6 {[%emt 0:01:30]} 11. Ne5 {[%emt 0:00:30]} Nfd5 {[%emt 0:08:30]} 12. Bb3 {[%emt 0:09:30]} Bxe5 {[%emt 0:06:30]} 13. dxe5 {[%emt 0:05:30]} Qe7 {[%emt 0:04:30]} 14. Ne4 {[%emt 0:04:30]} Bxe4 {[%emt 0:03:30]} 15. Qxe4 {[%emt 0:00:00]} O-O-O {[%emt 0:01:30]} 16. a3 {[%emt 0:03:00]} f5 {[%emt 0:04:30]} 17. exf6 {[%emt 0:04:30]} gxf6 {[%emt 0:01:30]} 18. c4 {[%emt 0:03:30]} Nb6 {[%emt 0:01:30]} 19. Be3 {[%emt 0:01:30]} Rhg8 {[%emt 0:04:30]} 20. Rad1 {[%emt 0:02:30]} f5 {[%emt 0:04:30]} 21. Rxd8+ {[%emt 0:12:30]} Kxd8 {[%emt 0:01:30]} 22. Rd1+ {[%emt 0:04:30]} Kc8 {[%emt 0:00:00]} 23. Qe5 {[%emt 0:04:30]} Qg7 {[%emt 0:01:00]} 24. Qxg7 {[%emt 0:02:30]} Rxg7 {[%emt 0:00:30]} 25. f4 {[%emt 0:02:30]} Rd7 {[%emt 0:02:30]} 26. Rxd7 {[%emt 0:01:30]} Kxd7 {[%emt 0:06:30]} 27. h3 {[%emt 0:01:30]} Ne8 {[%emt 0:04:30]} 28. Bd4 {[%emt 0:01:30]} Nc8 {[%emt 0:01:30]} 29. g4 {[%emt 0:02:30]} b6 {[%emt 0:05:30]} 30. g5 {[%emt 0:02:30]} c5 {[%emt 0:00:30]} 31. Be5 {[%emt 0:01:30]} Ned6 {[%emt 0:03:30]} 32. Ba4+ {[%emt 0:05:51]} Ke7 {[%emt 0:02:30]} 33. b3 {[%emt 0:01:58]} Ne4 {[%emt 0:06:30]} 34. h4 {[%emt 0:02:13]} a6 {[%emt 0:07:33]} 35. h5 {[%emt 0:02:47]} Kf7 {[%emt 0:04:44]} 36. Bd7 {[%emt 0:03:16]} Ne7 {[%emt 0:04:25]} 37. Kg2 {[%emt 0:00:41]} Nd2 {[%emt 0:00:46]} 38. g6+ {[%emt 0:03:16]} hxg6 {[%emt 0:00:36]} 39. h6 {[%emt 0:00:05]} Kg8 {[%emt 0:00:09]} 40. Bf6 {[%emt 0:00:08]} Nxb3 {[%emt 0:01:16]} 41. Bxe7 {[%emt 0:30:21]} Nd4 {[%emt 0:30:03]} 42. a4 {[%emt 0:04:14]} Kh7 {[%emt 0:00:18]} 43. Bd8 {[%emt 0:00:17]} Ne2 {[%emt 0:00:06]} 44. Kf3 {[%emt 0:00:37]} Nd4+ {[%emt 0:00:14]} 45. Kf2 {[%emt 0:00:46]} Kxh6 {[%emt 0:00:02]} 46. Bxb6 {[%emt 0:01:10]} Nb3 {[%emt 0:00:30]} 47. Bxe6 {[%emt 0:01:39]} Nd2 {[%emt 0:00:04]} 48. Ke3 {[%emt 0:00:46]} Nb3 {[%emt 0:00:18]} 49. a5 {[%emt 0:00:23]} 1-0

[Event "26th Zadar Open 2019"]
[Site "Zadar"]
[Date "2019.12.20"]
[Round "7.11"]
[White "Spalir, Jernej"]
[Black "Pecnik, Leo"]
[Result "0-1"]
[ECO "B51"]
[WhiteElo "2429"]
[BlackElo "2326"]
[Annotator "NA"]
[PlyCount "72"]
[EventDate "2019.12.15"]
[EventType "swiss"]
[EventCountry "CRO"]
[SourceTitle "playchess.com"]
[Source "ChessBase"]
[SourceQuality "1"]
[TimeControl "40/5400+30:1800+30"]

1. e4 {[%emt 0:00:30]} c5 {[%emt 0:00:30]} 2. Nf3 {[%emt 0:00:00]} Nc6 {[%emt 0:00:00]} 3. Bb5 {[%emt 0:00:00]} d6 {[%emt 0:00:00]} 4. O-O {[%emt 0:00:00]} Bd7 {[%emt 0:00:30]} 5. Re1 {[%emt 0:00:00]} Nf6 {[%emt 0:00:00]} 6. c3 {[%emt 0:02:30]} a6 {[%emt 0:00:00]} 7. Bf1 {[%emt 0:00:00]} Bg4 {[%emt 0:00:30]} 8. h3 {[%emt 0:00:00]} Bh5 {[%emt 0:00:30]} 9. d3 {[%emt 0:00:00]} e6 {[%emt 0:01:30]} 10. Nbd2 {[%emt 0:05:00]} Be7 {[%emt 0:00:30]} 11. Qb3 {[%emt 0:09:30]} O-O {[%emt 0:04:30]} 12. g4 $11 {[%emt 0:03:30]} Bg6 {[%emt 0:00:00]} 13. Nh4 {[%emt 0:00:30]} Nd7 {[%emt 0:13:00]} 14. Nxg6 {[%emt 0:05:30]} fxg6 {[%emt 0:09:30]} 15. Qxe6+ {[%emt 0:00:30]} Kh8 {[%emt 0:00:00]} 16. Be2 {[%emt 0:03:30]} Nde5 {[%emt 0:04:00]} 17. Rf1 {[%emt 0:02:30]} Bg5 {[%emt 0:01:30]} 18. Kg2 {[%emt 0:02:30]} Bf4 {[%emt 0:02:30]} 19. Qd5 {[%emt 0:07:30]} g5 {[%emt 0:06:30]} 20. f3 {[%emt 0:31:30]} Ng6 {[%emt 0:15:30]} 21. Kf2 {[%emt 0:01:30]} Bg3+ {[%emt 0:12:30]} 22. Kxg3 {[%emt 0:02:30]} Nf4 {[%emt 0:00:00]} 23. Qb3 {[%emt 0:01:30]} Nxe2+ {[%emt 0:00:00]} 24. Kf2 {[%emt 0:00:30]} Nf4 {[%emt 0:00:30]} 25. Nc4 {[%emt 0:03:56]} b5 {[%emt 0:03:30]} 26. Bxf4 {[%emt 0:00:24]} bxc4 {[%emt 0:07:17]} 27. Qa4 {[%emt 0:00:05]} gxf4 {[%emt 0:00:36]} 28. Qxc6 {[%emt 0:00:08]} cxd3 {[%emt 0:00:06]} 29. Ke1 {[%emt 0:01:39]} d5 {[%emt 0:07:15]} 30. Qxd5 {[%emt 0:01:25]} Qb6 {[%emt 0:02:51]} 31. Qb3 {[%emt 0:05:02]} Qh6 {[%emt 0:01:41]} 32. Qc4 {[%emt 0:01:11]} Qxh3 {[%emt 0:02:08]} 33. Qxc5 {[%emt 0:00:57]} Rab8 {[%emt 0:01:14]} 34. Rd1 {[%emt 0:00:48]} Qg3+ {[%emt 0:00:08]} 35. Qf2 {[%emt 0:00:07]} Rxb2 {[%emt 0:00:12]} 36. Qxg3 {[%emt 0:01:51]} Re2# {[%emt 0:00:06]} 0-1

[Event "26th Zadar Open 2019"]
[Site "Zadar"]
[Date "2019.12.20"]
[Round "7.13"]
[White "Chan, Kim Yew"]
[Black "Rezan, Sasa"]
[Result "1-0"]
[ECO "B38"]
[WhiteElo "2245"]
[BlackElo "2415"]
[Annotator "NA"]
[PlyCount "79"]
[EventDate "2019.12.15"]
[EventType "swiss"]
[EventCountry "CRO"]
[SourceTitle "playchess.com"]
[Source "ChessBase"]
[SourceQuality "1"]
[TimeControl "40/5400+30:1800+30"]

1. Nf3 {[%emt 0:00:30]} c5 {[%emt 0:00:30]} 2. c4 {[%emt 0:00:00]} g6 {[%emt 0:00:30]} 3. e4 {[%emt 0:00:00]} Bg7 {[%emt 0:00:30]} 4. d4 {[%emt 0:00:00]} cxd4 {[%emt 0:00:30]} 5. Nxd4 {[%emt 0:00:00]} Nc6 {[%emt 0:00:00]} 6. Be3 {[%emt 0:00:00]} Qb6 {[%emt 0:00:00]} 7. Nb3 {[%emt 0:03:00]} Qd8 {[%emt 0:00:30]} 8. Nd4 {[%emt 0:01:30]} Qb6 {[%emt 0:05:30]} 9. Nb3 {[%emt 0:01:30]} Qc7 {[%emt 0:00:30]} 10. Qd2 {[%emt 0:07:30]} Nf6 {[%emt 0:02:30]} 11. Nc3 {[%emt 0:00:30]} O-O {[%emt 0:00:30]} 12. Rc1 $14 {[%emt 0:03:30]} d6 {[%emt 0:04:30]} 13. Be2 {[%emt 0:00:30]} Qb8 {[%emt 0:09:30]} 14. f3 {[%emt 0:01:30]} b6 {[%emt 0:05:30]} 15. Nd5 {[%emt 0:04:30]} Re8 {[%emt 0:05:30]} 16. O-O {[%emt 0:01:30]} Bb7 {[%emt 0:00:30]} 17. Rfd1 {[%emt 0:03:30]} Nd7 {[%emt 0:03:30]} 18. Bf1 {[%emt 0:04:30]} Nc5 {[%emt 0:08:30]} 19. Na1 {[%emt 0:01:30]} e6 {[%emt 0:08:30]} 20. Nf4 {[%emt 0:09:30]} e5 {[%emt 0:06:30]} 21. Ne2 {[%emt 0:07:30]} f5 {[%emt 0:05:30]} 22. exf5 {[%emt 0:05:30]} gxf5 {[%emt 0:00:30]} 23. Bh6 {[%emt 0:12:30]} Qc7 {[%emt 0:04:30]} 24. Ng3 {[%emt 0:08:30]} f4 {[%emt 0:03:30]} 25. Nf5 {[%emt 0:02:30]} Bxh6 {[%emt 0:06:49]} 26. Nxh6+ {[%emt 0:00:30]} Kf8 {[%emt 0:00:08]} 27. Nf5 {[%emt 0:05:19]} Red8 {[%emt 0:03:34]} 28. b4 {[%emt 0:02:30]} Ne6 {[%emt 0:01:21]} 29. Nb3 {[%emt 0:00:39]} Ng7 {[%emt 0:04:24]} 30. Nxd6 {[%emt 0:02:07]} Nf5 {[%emt 0:02:34]} 31. c5 {[%emt 0:00:20]} bxc5 {[%emt 0:00:35]} 32. bxc5 {[%emt 0:00:18]} Ncd4 {[%emt 0:02:03]} 33. Nxd4 {[%emt 0:00:54]} Nxd4 {[%emt 0:00:01]} 34. Qf2 {[%emt 0:00:25]} Qg7 {[%emt 0:01:01]} 35. Kh1 {[%emt 0:05:58]} Bc6 {[%emt 0:00:18]} 36. Bc4 {[%emt 0:01:10]} Rab8 {[%emt 0:00:26]} 37. Rxd4 {[%emt 0:00:55]} exd4 {[%emt 0:00:06]} 38. Qh4 {[%emt 0:00:07]} Qg6 {[%emt 0:02:26]} 39. Qxf4+ {[%emt 0:02:23]} Kg7 {[%emt 0:00:01]} 40. Nf5+ {[%emt 0:00:46]} 1-0